[Event "Netanya Open 2019"]
[Site "Netanya"]
[Date "2019.06.24"]
[Round "2.4"]
[White "Parligras, Mircea-Emilian"]
[Black "Gorodetzky, Matan"]
[Result "1-0"]
[ECO "D30"]
[WhiteElo "2638"]
[BlackElo "2303"]
[Annotator "RC"]
[PlyCount "95"]
[EventDate "2019.06.23"]
[EventType "swiss"]
[EventCountry "ISR"]
[SourceTitle "playchess.com"]
[Source "ChessBase"]
[SourceQuality "1"]
[TimeControl "40/5400+30:1800+30"]

1. d4 {[%emt 0:00:00]} d5 {[%emt 0:00:00]} 2. c4 {[%emt 0:00:00]} e6 {[%emt 0:00:00]} 3. Nf3 {[%emt 0:00:15]} c5 {[%emt 0:00:20]} 4. cxd5 {[%emt 0:00:30]} exd5 {[%emt 0:00:07]} 5. Bg5 {[%emt 0:00:26]} Be7 {[%emt 0:04:06]} 6. Bxe7 {[%emt 0:00:31]} Nxe7 {[%emt 0:03:29]} 7. dxc5 {[%emt 0:00:23]} Qa5+ {[%emt 0:06:50]} 8. Nc3 {[%emt 0:00:19]} Qxc5 {[%emt 0:00:40]} 9. e3 {[%emt 0:00:19]} Nbc6 {[%emt 0:05:07]} 10. Bd3 {[%emt 0:00:32]} O-O {[%emt 0:07:28]} 11. O-O {[%emt 0:00:23]} h6 {[%emt 0:00:32]} 12. h3 {[%emt 0:00:31]} Rd8 {[%emt 0:04:52]} 13. Rc1 {[%emt 0:02:21]} a6 {[%emt 0:23:10]} 14. a3 {[%emt 0:01:17]} Qd6 {[%emt 0:03:29]} 15. Ne2 {[%emt 0:07:51]} Bd7 {[%emt 0:07:32]} 16. Ned4 {[%emt 0:01:11]} Rac8 {[%emt 0:00:48]} 17. Bb1 {[%emt 0:07:42]} g6 {[%emt 0:13:02]} 18. Qd2 {[%emt 0:01:43]} Qf6 {[%emt 0:01:48]} 19. Rfd1 {[%emt 0:01:51]} Kg7 {[%emt 0:02:42]} 20. Bd3 {[%emt 0:09:49]} Nxd4 {[%emt 0:03:22]} 21. Nxd4 {[%emt 0:00:05]} Nc6 {[%emt 0:05:07]} 22. Nxc6 {[%emt 0:02:30]} Bxc6 {[%emt 0:00:04]} 23. Rc5 {[%emt 0:06:37]} d4 {[%emt 0:01:55]} 24. e4 {[%emt 0:00:24]} Qd6 {[%emt 0:04:32]} 25. Rdc1 {[%emt 0:07:52]} b6 {[%emt 0:00:10]} 26. e5 {[%emt 0:02:32]} Qxc5 {[%emt 0:00:23]} 27. Rxc5 {[%emt 0:00:06]} bxc5 {[%emt 0:00:03]} 28. Bxa6 {[%emt 0:00:26]} Rb8 {[%emt 0:00:41]} 29. Qf4 {[%emt 0:01:29]} Bd5 {[%emt 0:00:26]} 30. b4 {[%emt 0:01:15]} Rb6 {[%emt 0:01:37]} 31. Be2 {[%emt 0:10:02]} g5 {[%emt 0:00:14]} 32. Qd2 {[%emt 0:00:43]} Be6 {[%emt 0:00:27]} 33. bxc5 {[%emt 0:00:27]} Rc6 {[%emt 0:00:19]} 34. f4 {[%emt 0:03:09]} f6 {[%emt 0:00:23]} 35. Qb4 {[%emt 0:03:05]} Bf7 {[%emt 0:01:09]} 36. Bf3 {[%emt 0:01:27]} Re6 {[%emt 0:00:33]} 37. c6 {[%emt 0:06:07]} d3 {[%emt 0:00:07]} 38. c7 {[%emt 0:04:50]} Rc8 {[%emt 0:00:07]} 39. Bg4 {[%emt 0:10:22]} Rxc7 {[%emt 0:01:06]} 40. Bxe6 {[%emt 0:00:32]} Bxe6 {[%emt 0:00:14]} 41. Qd6 {[%emt 0:30:21]} Rc1+ {[%emt 0:03:43]} 42. Kh2 {[%emt 0:00:00]} Kf7 {[%emt 0:02:53]} 43. f5 {[%emt 0:00:00]} Bxf5 {[%emt 0:02:36]} 44. Qxf6+ {[%emt 0:00:00]} Kg8 {[%emt 0:01:06]} 45. Qxf5 {[%emt 0:00:00]} d2 {[%emt 0:00:06]} 46. Qg6+ {[%emt 0:00:00]} Kf8 {[%emt 0:00:07]} 47. Qxh6+ {[%emt 0:00:00]} Ke8 {[%emt 0:01:37]} 48. Qe6+ {[%emt 0:00:00]} 1-0

[Event "Netanya Open 2019"]
[Site "Netanya"]
[Date "2019.06.24"]
[Round "2.5"]
[White "Aharon, Ofir"]
[Black "Efimenko, Zahar"]
[Result "0-1"]
[ECO "B41"]
[WhiteElo "2302"]
[BlackElo "2632"]
[Annotator "RC"]
[PlyCount "90"]
[EventDate "2019.06.23"]
[EventType "swiss"]
[EventCountry "ISR"]
[SourceTitle "playchess.com"]
[Source "ChessBase"]
[SourceQuality "1"]
[TimeControl "40/5400+30:1800+30"]

1. e4 {[%emt 0:00:00]} c5 {[%emt 0:00:11]} 2. Nf3 {[%emt 0:00:00]} e6 {[%emt 0:00:11]} 3. d4 {[%emt 0:01:39]} cxd4 {[%emt 0:00:11]} 4. Nxd4 {[%emt 0:00:06]} a6 {[%emt 0:00:09]} 5. c4 {[%emt 0:00:12]} Nf6 {[%emt 0:00:38]} 6. Nc3 {[%emt 0:00:10]} Qc7 {[%emt 0:00:28]} 7. Be2 {[%emt 0:00:22]} Bb4 {[%emt 0:00:40]} 8. Qd3 {[%emt 0:02:03]} Nc6 {[%emt 0:00:39]} 9. Nxc6 {[%emt 0:04:30]} dxc6 {[%emt 0:00:13]} 10. a3 {[%emt 0:03:24]} Bc5 {[%emt 0:07:29]} 11. Be3 {[%emt 0:15:01]} Bxe3 {[%emt 0:00:57]} 12. Qxe3 {[%emt 0:00:06]} e5 {[%emt 0:00:14]} 13. O-O {[%emt 0:01:37]} O-O {[%emt 0:00:43]} 14. Na4 {[%emt 0:05:38]} Be6 {[%emt 0:06:12]} 15. Nc5 {[%emt 0:04:23]} Rad8 {[%emt 0:05:09]} 16. Nxe6 {[%emt 0:00:31]} fxe6 {[%emt 0:00:04]} 17. c5 {[%emt 0:10:01]} Rd4 {[%emt 0:01:44]} 18. f3 {[%emt 0:00:17]} Rfd8 {[%emt 0:02:06]} 19. Rfd1 {[%emt 0:01:35]} a5 {[%emt 0:07:58]} 20. Rxd4 {[%emt 0:02:14]} exd4 {[%emt 0:04:06]} 21. Qb3 {[%emt 0:05:30]} Qe5 {[%emt 0:01:32]} 22. Qc4 {[%emt 0:08:47]} Nd7 {[%emt 0:08:08]} 23. Rc1 {[%emt 0:00:11]} Qf6 {[%emt 0:01:25]} 24. Rd1 {[%emt 0:05:28]} Ne5 {[%emt 0:01:59]} 25. Qb3 {[%emt 0:01:04]} g5 {[%emt 0:05:43]} 26. Bc4 {[%emt 0:01:24]} Nxc4 {[%emt 0:20:41]} 27. Qxc4 {[%emt 0:00:05]} Qe5 {[%emt 0:00:16]} 28. b4 {[%emt 0:02:41]} axb4 {[%emt 0:01:43]} 29. axb4 {[%emt 0:00:16]} h5 {[%emt 0:00:36]} 30. Qd3 {[%emt 0:04:08]} h4 {[%emt 0:02:32]} 31. Rf1 {[%emt 0:04:55]} Qf4 {[%emt 0:02:45]} 32. Rd1 {[%emt 0:01:57]} Kg7 {[%emt 0:01:10]} 33. Qd2 {[%emt 0:01:37]} Qxd2 {[%emt 0:04:27]} 34. Rxd2 {[%emt 0:00:01]} Kf6 {[%emt 0:00:50]} 35. Kf2 {[%emt 0:02:21]} Ke5 {[%emt 0:00:06]} 36. Ra2 {[%emt 0:06:35]} g4 {[%emt 0:00:44]} 37. fxg4 {[%emt 0:06:02]} Kxe4 {[%emt 0:00:24]} 38. Ke2 {[%emt 0:01:01]} d3+ {[%emt 0:04:31]} 39. Kd2 {[%emt 0:00:01]} Rf8 {[%emt 0:00:22]} 40. Kc3 {[%emt 0:01:05]} Ke3 {[%emt 0:01:04]} 41. Ra1 {[%emt 0:04:29]} d2 {[%emt 0:04:40]} 42. Rd1 {[%emt 0:00:59]} Rd8 {[%emt 0:00:36]} 43. g5 {[%emt 0:00:58]} Ke2 {[%emt 0:00:23]} 44. Kc2 {[%emt 0:00:12]} e5 {[%emt 0:00:15]} 45. g3 {[%emt 0:02:23]} h3 {[%emt 0:00:58]} 0-1

[Event "Netanya Open 2019"]
[Site "Netanya"]
[Date "2019.06.24"]
[Round "2.7"]
[White "Prraneeth Vuppala"]
[Black "Zubov, Alexander"]
[Result "0-1"]
[ECO "A41"]
[WhiteElo "2264"]
[BlackElo "2597"]
[Annotator "ChessBase"]
[PlyCount "68"]
[EventDate "2019.06.23"]
[EventType "swiss"]
[EventCountry "ISR"]
[SourceTitle "playchess.com"]
[Source "ChessBase"]
[SourceQuality "1"]
[TimeControl "40/5400+30:1800+30"]

1. d4 {[%emt 0:00:00]} d6 {[%emt 0:00:00]} 2. Nf3 {[%emt 0:00:00]} g6 {[%emt 0:00:25]} 3. g3 {[%emt 0:00:59]} b5 {[%emt 0:01:29]} 4. Bg2 {[%emt 0:03:21]} Bb7 {[%emt 0:00:09]} 5. Qd3 {[%emt 0:13:24]} a6 {[%emt 0:00:59]} 6. c4 {[%emt 0:01:12]} c6 {[%emt 0:04:18]} 7. O-O {[%emt 0:14:36]} Nf6 {[%emt 0:00:50]} 8. b3 {[%emt 1:00:28]} Bg7 {[%emt 0:01:35]} 9. Bb2 {[%emt 0:00:00]} O-O {[%emt 0:04:23]} 10. Nbd2 {[%emt 0:00:00]} Nbd7 {[%emt 0:00:37]} 11. e4 {[%emt 0:00:00]} e5 {[%emt 0:01:11]} 12. Rad1 {[%emt 0:00:00]} exd4 {[%emt 0:06:40]} 13. Nxd4 {[%emt 0:00:00]} Re8 {[%emt 0:01:25]} 14. Rfe1 {[%emt 0:00:00]} Qb6 {[%emt 0:04:25]} 15. h3 {[%emt 0:00:00]} Re7 {[%emt 0:14:07]} 16. Kh2 {[%emt 0:00:00]} Rae8 {[%emt 0:18:30]} 17. f4 {[%emt 0:00:00]} Nh5 {[%emt 0:03:51]} 18. Bc3 {[%emt 0:00:00]} b4 {[%emt 0:02:04]} 19. Ba1 {[%emt 0:00:00]} f5 {[%emt 0:05:53]} 20. Nc2 {[%emt 0:00:42]} Nc5 {[%emt 0:02:33]} 21. Qe3 {[%emt 0:00:20]} Bxa1 {[%emt 0:02:46]} 22. Rxa1 {[%emt 0:00:28]} fxe4 {[%emt 0:01:07]} 23. Nxe4 {[%emt 0:04:28]} Rxe4 {[%emt 0:02:08]} 24. Bxe4 {[%emt 0:00:05]} Rxe4 {[%emt 0:00:11]} 25. Qf2 {[%emt 0:01:30]} Qc7 {[%emt 0:01:42]} 26. Nxb4 {[%emt 0:00:47]} a5 {[%emt 0:00:07]} 27. Rxe4 {[%emt 0:00:30]} Nxe4 {[%emt 0:00:06]} 28. Qe3 {[%emt 0:00:13]} Nhxg3 {[%emt 0:00:20]} 29. Nd3 {[%emt 0:00:21]} c5 {[%emt 0:00:12]} 30. Nf2 {[%emt 0:00:25]} Nf5 {[%emt 0:00:36]} 31. Qe2 {[%emt 0:00:28]} Nd4 {[%emt 0:00:40]} 32. Qb2 {[%emt 0:00:15]} Qe7 {[%emt 0:05:45]} 33. Nxe4 {[%emt 0:00:51]} Qxe4 {[%emt 0:00:33]} 34. Qf2 {[%emt 0:00:02]} Nf3+ {[%emt 0:00:28]} 0-1

[Event "Netanya Open 2019"]
[Site "Netanya"]
[Date "2019.06.24"]
[Round "2.8"]
[White "Huzman, Alexander"]
[Black "Tzidkiya, Yeshaayahu"]
[Result "1-0"]
[ECO "A49"]
[WhiteElo "2588"]
[BlackElo "2265"]
[Annotator "ChessBase"]
[PlyCount "99"]
[EventDate "2019.06.23"]
[EventType "swiss"]
[EventCountry "ISR"]
[SourceTitle "playchess.com"]
[Source "ChessBase"]
[SourceQuality "1"]
[TimeControl "40/5400+30:1800+30"]

1. Nf3 {[%emt 0:00:00]} Nf6 {[%emt 0:00:00]} 2. d4 {[%emt 0:00:14]} g6 {[%emt 0:00:00]} 3. g3 {[%emt 0:00:08]} Bg7 {[%emt 0:00:00]} 4. Bg2 {[%emt 0:00:04]} O-O {[%emt 0:00:00]} 5. O-O {[%emt 0:00:05]} d6 {[%emt 0:00:17]} 6. b3 {[%emt 0:00:30]} e5 {[%emt 0:01:47]} 7. dxe5 {[%emt 0:02:17]} Ng4 {[%emt 0:01:16]} 8. Bb2 {[%emt 0:01:09]} Nc6 {[%emt 0:00:06]} 9. Qc1 {[%emt 0:03:43]} Ncxe5 {[%emt 0:01:24]} 10. Nxe5 {[%emt 0:12:42]} Nxe5 {[%emt 0:00:08]} 11. c4 {[%emt 0:00:05]} c6 {[%emt 0:10:57]} 12. Nc3 {[%emt 0:04:50]} f5 {[%emt 0:11:28]} 13. Qd2 {[%emt 0:02:15]} Be6 {[%emt 0:05:04]} 14. Rad1 {[%emt 0:04:13]} Nf7 {[%emt 0:00:31]} 15. f4 {[%emt 0:06:04]} Re8 {[%emt 0:08:03]} 16. e4 {[%emt 0:06:53]} Qc7 {[%emt 0:11:14]} 17. Rfe1 {[%emt 0:06:02]} Rad8 {[%emt 0:01:53]} 18. h3 {[%emt 0:00:53]} Nh6 {[%emt 0:08:57]} 19. Kh2 {[%emt 0:00:45]} Kh8 {[%emt 0:00:54]} 20. Re2 {[%emt 0:04:48]} Ng8 {[%emt 0:05:30]} 21. exf5 {[%emt 0:05:11]} gxf5 {[%emt 0:11:51]} 22. Rde1 {[%emt 0:01:14]} Bf7 {[%emt 0:03:12]} 23. Rxe8 {[%emt 0:02:31]} Rxe8 {[%emt 0:00:11]} 24. Nd1 {[%emt 0:03:47]} Rxe1 {[%emt 0:09:02]} 25. Bxg7+ {[%emt 0:00:36]} Kxg7 {[%emt 0:00:04]} 26. Qxe1 {[%emt 0:00:03]} Nf6 {[%emt 0:01:31]} 27. Ne3 {[%emt 0:02:55]} Bg6 {[%emt 0:00:24]} 28. Qc3 {[%emt 0:01:12]} Qe7 {[%emt 0:03:27]} 29. Qd4 {[%emt 0:02:57]} a6 {[%emt 0:01:02]} 30. Kg1 {[%emt 0:00:30]} Kg8 {[%emt 0:02:39]} 31. Kf2 {[%emt 0:00:32]} Qe6 {[%emt 0:01:57]} 32. b4 {[%emt 0:03:43]} Kf7 {[%emt 0:00:31]} 33. a4 {[%emt 0:01:05]} Qe7 {[%emt 0:00:24]} 34. a5 {[%emt 0:02:08]} Qc7 {[%emt 0:00:42]} 35. Bf3 {[%emt 0:01:54]} Qd7 {[%emt 0:00:23]} 36. g4 {[%emt 0:01:25]} fxg4 {[%emt 0:00:37]} 37. hxg4 {[%emt 0:00:05]} h6 {[%emt 0:00:18]} 38. f5 {[%emt 0:05:29]} Bh7 {[%emt 0:00:04]} 39. b5 {[%emt 0:01:19]} axb5 {[%emt 0:01:08]} 40. cxb5 {[%emt 0:00:17]} cxb5 {[%emt 0:00:25]} 41. Nd5 {[%emt 0:30:52]} Ng8 {[%emt 0:30:36]} 42. Qh8 {[%emt 0:01:02]} Kf8 {[%emt 0:00:29]} 43. Nf6 {[%emt 0:00:26]} Qf7 {[%emt 0:00:00]} 44. Nxh7+ {[%emt 0:00:00]} Ke7 {[%emt 0:00:00]} 45. f6+ {[%emt 0:00:00]} Ke8 {[%emt 0:00:00]} 46. g5 {[%emt 0:00:00]} Qa2+ {[%emt 0:00:00]} 47. Kg3 {[%emt 0:00:00]} Qe6 {[%emt 0:00:00]} 48. g6 {[%emt 0:00:00]} Qe1+ {[%emt 0:00:00]} 49. Kg2 {[%emt 0:00:00]} Qd2+ {[%emt 0:00:00]} 50. Kh3 {[%emt 0:00:00]} 1-0

[Event "Netanya Open 2019"]
[Site "Netanya"]
[Date "2019.06.24"]
[Round "2.9"]
[White "Cohen Revivo, Shoham"]
[Black "Antipov, Mikhail Al."]
[Result "0-1"]
[ECO "B84"]
[WhiteElo "2240"]
[BlackElo "2582"]
[Annotator "ChessBase"]
[PlyCount "60"]
[EventDate "2019.06.23"]
[EventType "swiss"]
[EventCountry "ISR"]
[SourceTitle "playchess.com"]
[Source "ChessBase"]
[SourceQuality "1"]
[TimeControl "40/5400+30:1800+30"]

1. e4 {[%emt 0:00:00]} c5 {[%emt 0:00:00]} 2. Nf3 {[%emt 0:00:00]} e6 {[%emt 0:00:00]} 3. d4 {[%emt 0:00:00]} cxd4 {[%emt 0:00:00]} 4. Nxd4 {[%emt 0:00:05]} Nf6 {[%emt 0:00:00]} 5. Nc3 {[%emt 0:00:15]} d6 {[%emt 0:00:09]} 6. f4 {[%emt 0:02:53]} Be7 {[%emt 0:01:41]} 7. Be2 {[%emt 0:00:59]} a6 {[%emt 0:00:31]} 8. Be3 {[%emt 0:01:33]} Qc7 {[%emt 0:00:24]} 9. O-O {[%emt 0:00:18]} O-O {[%emt 0:01:54]} 10. Qd2 {[%emt 0:03:18]} b5 {[%emt 0:03:17]} 11. a3 {[%emt 0:00:09]} Bb7 {[%emt 0:00:54]} 12. Bf3 {[%emt 0:01:06]} Nbd7 {[%emt 0:02:15]} 13. g4 {[%emt 0:02:21]} Nb6 {[%emt 0:03:48]} 14. b3 {[%emt 0:05:53]} Rac8 {[%emt 0:05:33]} 15. Nde2 {[%emt 0:00:13]} d5 {[%emt 0:01:54]} 16. e5 {[%emt 0:00:24]} Ne4 {[%emt 0:00:07]} 17. Bxe4 {[%emt 0:00:35]} dxe4 {[%emt 0:00:05]} 18. Qd4 {[%emt 0:06:23]} Nd7 {[%emt 0:01:47]} 19. Qd2 {[%emt 0:34:05]} Rfd8 {[%emt 0:01:28]} 20. Qe1 {[%emt 0:01:12]} f6 {[%emt 0:15:10]} 21. Qg3 {[%emt 0:01:08]} fxe5 {[%emt 0:00:33]} 22. f5 {[%emt 0:00:14]} exf5 {[%emt 0:00:35]} 23. Rxf5 {[%emt 0:00:56]} Nf8 {[%emt 0:02:15]} 24. Raf1 {[%emt 0:01:01]} Ng6 {[%emt 0:00:13]} 25. g5 {[%emt 0:00:58]} Bxa3 {[%emt 0:03:45]} 26. Rf7 {[%emt 0:05:17]} Rd7 {[%emt 0:01:58]} 27. Rxd7 {[%emt 0:02:26]} Qxd7 {[%emt 0:00:06]} 28. Rd1 {[%emt 0:00:31]} Qe6 {[%emt 0:00:24]} 29. h4 {[%emt 0:00:56]} Rf8 {[%emt 0:00:24]} 30. h5 {[%emt 0:06:01]} Rf3 {[%emt 0:02:24]} 0-1

[Event "Netanya Open 2019"]
[Site "Netanya"]
[Date "2019.06.24"]
[Round "2.10"]
[White "Mikhalevski, Victor"]
[Black "Tifferet, Shaked"]
[Result "1-0"]
[ECO "E06"]
[WhiteElo "2579"]
[BlackElo "2249"]
[Annotator "ChessBase"]
[PlyCount "109"]
[EventDate "2019.06.23"]
[EventType "swiss"]
[EventCountry "ISR"]
[SourceTitle "playchess.com"]
[Source "ChessBase"]
[SourceQuality "1"]
[TimeControl "40/5400+30:1800+30"]

1. d4 {[%emt 0:33:11]} Nf6 {[%emt 0:00:00]} 2. Nf3 {[%emt 0:00:14]} d5 {[%emt 0:00:00]} 3. c4 {[%emt 0:00:15]} e6 {[%emt 0:00:04]} 4. g3 {[%emt 0:00:22]} Be7 {[%emt 0:00:07]} 5. Bg2 {[%emt 0:00:09]} O-O {[%emt 0:00:10]} 6. Qc2 {[%emt 0:00:15]} c5 {[%emt 0:00:16]} 7. O-O {[%emt 0:00:59]} cxd4 {[%emt 0:00:16]} 8. Nxd4 {[%emt 0:00:05]} Nc6 {[%emt 0:00:05]} 9. Nxc6 {[%emt 0:00:21]} bxc6 {[%emt 0:00:02]} 10. b3 {[%emt 0:00:48]} Ba6 {[%emt 0:01:01]} 11. Nd2 {[%emt 0:01:52]} Qb6 {[%emt 0:00:42]} 12. Bb2 {[%emt 0:01:14]} Rac8 {[%emt 0:01:24]} 13. Nf3 {[%emt 0:04:22]} Rfd8 {[%emt 0:03:36]} 14. Rac1 {[%emt 0:17:59]} c5 {[%emt 0:04:03]} 15. cxd5 {[%emt 0:03:30]} Nxd5 {[%emt 0:06:25]} 16. Ne5 {[%emt 0:09:34]} Nb4 {[%emt 0:04:02]} 17. Qe4 {[%emt 0:00:10]} Nxa2 {[%emt 0:16:54]} 18. Ra1 {[%emt 0:06:34]} Nb4 {[%emt 0:00:58]} 19. Nxf7 {[%emt 0:03:24]} Kxf7 {[%emt 0:00:48]} 20. Qxh7 {[%emt 0:00:04]} Rg8 {[%emt 0:18:01]} 21. Bf3 {[%emt 0:00:41]} e5 {[%emt 0:11:35]} 22. Bh5+ {[%emt 0:06:23]} Kf8 {[%emt 0:00:33]} 23. Bxe5 {[%emt 0:00:20]} Qe6 {[%emt 0:02:25]} 24. Qe4 {[%emt 0:01:17]} Bf6 {[%emt 0:02:47]} 25. f4 {[%emt 0:02:25]} Rh8 {[%emt 0:04:35]} 26. Bg6 {[%emt 0:03:03]} Qc6 {[%emt 0:02:56]} 27. Rxa6 {[%emt 0:02:21]} Nxa6 {[%emt 0:04:46]} 28. Qc4 {[%emt 0:00:02]} Rc7 {[%emt 0:02:55]} 29. Be4 {[%emt 0:00:38]} Qb6 {[%emt 0:04:42]} 30. Rd1 {[%emt 0:00:03]} Bxe5 {[%emt 0:04:19]} 31. Rd8+ {[%emt 0:00:13]} Ke7 {[%emt 0:00:11]} 32. Rxh8 {[%emt 0:00:05]} Bd4+ {[%emt 0:00:21]} 33. Kf1 {[%emt 0:00:51]} Qf6 {[%emt 0:03:11]} 34. Qg8 {[%emt 0:01:41]} Rd7 {[%emt 0:00:15]} 35. Qe8+ {[%emt 0:01:10]} Kd6 {[%emt 0:00:05]} 36. Qc8 {[%emt 0:00:06]} Nc7 {[%emt 0:00:32]} 37. Rf8 {[%emt 0:00:18]} Qe7 {[%emt 0:01:43]} 38. Bf5 {[%emt 0:00:01]} Bf6 {[%emt 0:01:27]} 39. e4 {[%emt 0:00:50]} Rd8 {[%emt 0:00:45]} 40. e5+ {[%emt 0:00:15]} Kd5 {[%emt 0:00:29]} 41. Qb7+ {[%emt 0:07:34]} Kd4 {[%emt 0:00:49]} 42. Qf3 {[%emt 0:03:37]} c4 {[%emt 0:02:05]} 43. Qe4+ {[%emt 0:00:30]} Kc3 {[%emt 0:07:12]} 44. Qxc4+ {[%emt 0:00:50]} Kb2 {[%emt 0:00:16]} 45. Rf7 {[%emt 0:00:22]} Nd5 {[%emt 0:08:12]} 46. Qc2+ {[%emt 0:01:56]} Ka3 {[%emt 0:00:05]} 47. Qc1+ {[%emt 0:00:02]} Kb4 {[%emt 0:03:46]} 48. Rxe7 {[%emt 0:00:13]} Bxe7 {[%emt 0:00:06]} 49. Qc4+ {[%emt 0:01:05]} Ka3 {[%emt 0:00:26]} 50. Qa4+ {[%emt 0:00:57]} Kb2 {[%emt 0:00:05]} 51. Qxa7 {[%emt 0:00:06]} Bb4 {[%emt 0:01:12]} 52. Qd4+ {[%emt 0:01:15]} Bc3 {[%emt 0:00:37]} 53. Qd3 {[%emt 0:00:06]} Ba5 {[%emt 0:01:13]} 54. Qb1+ {[%emt 0:02:26]} Kc3 {[%emt 0:00:37]} 55. Qa1+ {[%emt 0:00:18]} 1-0

[Event "Netanya Open 2019"]
[Site "Netanya"]
[Date "2019.06.24"]
[Round "2.11"]
[White "Aroesti, Roee"]
[Black "Sivuk, Vitaly"]
[Result "1/2-1/2"]
[ECO "B51"]
[WhiteElo "2233"]
[BlackElo "2547"]
[Annotator "ChessBase"]
[PlyCount "80"]
[EventDate "2019.06.23"]
[EventType "swiss"]
[EventCountry "ISR"]
[SourceTitle "playchess.com"]
[Source "ChessBase"]
[SourceQuality "1"]
[TimeControl "40/5400+30:1800+30"]

1. e4 {[%emt 0:00:00]} c5 {[%emt 0:00:00]} 2. Nf3 {[%emt 0:00:06]} d6 {[%emt 0:00:00]} 3. Bb5+ {[%emt 0:00:39]} Nd7 {[%emt 0:00:02]} 4. O-O {[%emt 0:00:21]} a6 {[%emt 0:00:08]} 5. Bd3 {[%emt 0:00:04]} Ngf6 {[%emt 0:00:27]} 6. c3 {[%emt 0:00:09]} g6 {[%emt 0:01:34]} 7. Bc2 {[%emt 0:01:35]} Bg7 {[%emt 0:00:11]} 8. d4 {[%emt 0:01:59]} O-O {[%emt 0:04:34]} 9. h3 {[%emt 0:06:16]} e5 {[%emt 0:04:35]} 10. Be3 {[%emt 0:09:46]} Qc7 {[%emt 0:02:13]} 11. Nbd2 {[%emt 0:12:14]} b5 {[%emt 0:01:47]} 12. a4 {[%emt 0:03:47]} Bb7 {[%emt 0:00:24]} 13. d5 {[%emt 0:06:18]} c4 {[%emt 0:04:10]} 14. Qe2 {[%emt 0:14:10]} Nc5 {[%emt 0:04:59]} 15. Ra3 {[%emt 0:02:45]} Nh5 {[%emt 0:06:18]} 16. Rfa1 {[%emt 0:05:25]} Nf4 {[%emt 0:07:21]} 17. Qf1 {[%emt 0:00:02]} Rab8 {[%emt 0:07:57]} 18. g3 {[%emt 0:04:41]} Nfd3 {[%emt 0:01:53]} 19. axb5 {[%emt 0:00:53]} axb5 {[%emt 0:00:32]} 20. b4 {[%emt 0:01:35]} Nxe4 {[%emt 0:05:18]} 21. Nxe4 {[%emt 0:00:10]} Bxd5 {[%emt 0:00:08]} 22. Ra7 {[%emt 0:06:49]} Rb7 {[%emt 0:01:18]} 23. Bxd3 {[%emt 0:00:25]} cxd3 {[%emt 0:00:07]} 24. Qxd3 {[%emt 0:00:35]} Rxa7 {[%emt 0:00:57]} 25. Rxa7 {[%emt 0:00:28]} Qc6 {[%emt 0:00:07]} 26. Nfd2 {[%emt 0:02:39]} f5 {[%emt 0:02:50]} 27. Nxd6 {[%emt 0:05:29]} Qxd6 {[%emt 0:09:03]} 28. Bc5 {[%emt 0:00:01]} Qc6 {[%emt 0:00:21]} 29. Bxf8 {[%emt 0:01:23]} Bxf8 {[%emt 0:01:10]} 30. Ra5 {[%emt 0:04:21]} Bf7 {[%emt 0:03:42]} 31. Rxb5 {[%emt 0:02:23]} e4 {[%emt 0:00:16]} 32. Qe2 {[%emt 0:00:02]} Qxc3 {[%emt 0:00:11]} 33. Rb8 {[%emt 0:00:34]} Kg7 {[%emt 0:00:15]} 34. Rb7 {[%emt 0:03:27]} Kg8 {[%emt 0:01:10]} 35. Rb8 {[%emt 0:00:23]} Kg7 {[%emt 0:00:05]} 36. Rb7 {[%emt 0:02:59]} Kg8 {[%emt 0:00:12]} 37. Qe3 {[%emt 0:01:51]} Bxb4 {[%emt 0:01:25]} 38. Qh6 {[%emt 0:01:35]} Bf8 {[%emt 0:05:38]} 39. Rb8 {[%emt 0:00:19]} Qg7 {[%emt 0:01:09]} 40. Qxg7+ {[%emt 0:00:31]} Kxg7 {[%emt 0:00:02]} 1/2-1/2

[Event "Netanya Open 2019"]
[Site "Netanya"]
[Date "2019.06.24"]
[Round "2.12"]
[White "Rozentalis, Eduardas"]
[Black "Alexikov, Alexander"]
[Result "1/2-1/2"]
[ECO "B08"]
[WhiteElo "2540"]
[BlackElo "2234"]
[Annotator "ChessBase"]
[PlyCount "103"]
[EventDate "2019.06.23"]
[EventType "swiss"]
[EventCountry "ISR"]
[SourceTitle "playchess.com"]
[Source "ChessBase"]
[SourceQuality "1"]
[TimeControl "40/5400+30:1800+30"]

1. e4 {[%emt 0:00:00]} g6 {[%emt 0:00:00]} 2. d4 {[%emt 0:00:00]} Bg7 {[%emt 0:00:00]} 3. Nf3 {[%emt 0:00:45]} d6 {[%emt 0:01:04]} 4. Nc3 {[%emt 0:00:24]} Nf6 {[%emt 0:00:49]} 5. Be2 {[%emt 0:00:16]} O-O {[%emt 0:00:47]} 6. O-O {[%emt 0:00:09]} a6 {[%emt 0:09:16]} 7. a4 {[%emt 0:01:34]} Nc6 {[%emt 0:00:12]} 8. h3 {[%emt 0:03:58]} d5 {[%emt 0:03:56]} 9. exd5 {[%emt 0:09:24]} Nb4 {[%emt 0:00:54]} 10. Bc4 {[%emt 0:01:47]} Nbxd5 {[%emt 0:25:44]} 11. Nxd5 {[%emt 0:03:57]} Nxd5 {[%emt 0:02:10]} 12. a5 {[%emt 0:00:14]} b5 {[%emt 0:10:13]} 13. axb6 {[%emt 0:01:11]} Nxb6 {[%emt 0:00:09]} 14. Bb3 {[%emt 0:01:27]} Bb7 {[%emt 0:01:01]} 15. c3 {[%emt 0:00:11]} a5 {[%emt 0:00:37]} 16. Re1 {[%emt 0:01:29]} e6 {[%emt 0:04:57]} 17. Bc2 {[%emt 0:08:56]} Qc8 {[%emt 0:12:51]} 18. Qe2 {[%emt 0:37:28]} c5 {[%emt 0:06:27]} 19. Qb5 {[%emt 0:02:20]} Nd7 {[%emt 0:02:34]} 20. Ne5 {[%emt 0:06:16]} Nxe5 {[%emt 0:03:46]} 21. dxe5 {[%emt 0:00:08]} Qc7 {[%emt 0:00:03]} 22. Qe2 {[%emt 0:01:18]} c4 {[%emt 0:02:37]} 23. h4 {[%emt 0:02:39]} Bd5 {[%emt 0:06:15]} 24. h5 {[%emt 0:01:15]} Rfb8 {[%emt 0:00:15]} 25. Ra2 {[%emt 0:03:56]} Rb5 {[%emt 0:00:34]} 26. Ba4 {[%emt 0:01:00]} Rbb8 {[%emt 0:00:18]} 27. Bf4 {[%emt 0:01:01]} Rb7 {[%emt 0:02:04]} 28. Qe3 {[%emt 0:02:16]} Rab8 {[%emt 0:00:28]} 29. Re2 {[%emt 0:00:29]} Rb6 {[%emt 0:02:48]} 30. Bh6 {[%emt 0:01:27]} Bh8 {[%emt 0:00:54]} 31. Qg3 {[%emt 0:00:18]} Qe7 {[%emt 0:00:57]} 32. Bg5 {[%emt 0:01:16]} Qc7 {[%emt 0:00:01]} 33. Qf4 {[%emt 0:00:39]} Bg7 {[%emt 0:00:32]} 34. Bf6 {[%emt 0:00:35]} Bxf6 {[%emt 0:00:36]} 35. Qxf6 {[%emt 0:00:07]} Qd8 {[%emt 0:00:04]} 36. Qf4 {[%emt 0:00:38]} Qe7 {[%emt 0:00:49]} 37. Rd2 {[%emt 0:01:20]} g5 {[%emt 0:00:45]} 38. Qe3 {[%emt 0:00:50]} h6 {[%emt 0:00:42]} 39. Bd1 {[%emt 0:00:20]} Rb5 {[%emt 0:00:06]} 40. Be2 {[%emt 0:01:24]} Kg7 {[%emt 0:00:25]} 41. Qd4 {[%emt 0:32:27]} Qc5 {[%emt 0:30:59]} 42. Qg4 {[%emt 0:01:16]} R8b7 {[%emt 0:00:35]} 43. Bd1 {[%emt 0:00:00]} Rb8 {[%emt 0:00:00]} 44. Qg3 {[%emt 0:00:00]} Be4 {[%emt 0:00:00]} 45. Ba4 {[%emt 0:00:00]} R5b7 {[%emt 0:00:00]} 46. Kh2 {[%emt 0:00:00]} Bb1 {[%emt 0:00:00]} 47. Ra1 {[%emt 0:00:00]} Rxb2 {[%emt 0:00:00]} 48. Rd4 {[%emt 0:00:00]} Bf5 {[%emt 0:00:00]} 49. f4 {[%emt 0:00:00]} R2b3 {[%emt 0:01:56]} 50. Rad1 {[%emt 0:00:00]} g4 {[%emt 0:00:31]} 51. Qh4 {[%emt 0:00:00]} Kh7 {[%emt 0:00:29]} 52. Bxb3 {[%emt 0:05:04]} 1/2-1/2